bitfinex/quotes_BTCUSD_20230120
["timestamp","ask_amount","ask_price","bid_price","bid_amount"]
[1674245171081,1.09711794,21885.0,21881.0,0.55602894]
[1674245171330,0.47720169,21878.0,21867.0,0.6131159]
[1674245171596,0.0486023,21876.0,21867.0,0.6131159]
[1674245171889,0.47720169,21877.0,21867.0,0.61121374]
[1674245172120,0.28004,21880.0,21867.0,0.56121374]
[1674245172121,0.18323293,21876.0,21867.0,0.56121374]
[1674245172365,0.47720169,21875.0,21867.0,0.56121374]
[1674245172615,0.457062,21879.0,21868.0,0.02263594]
[1674245172850,1.05420087,21876.0,21864.0,0.07497]
[1674245173143,0.75094,21876.0,21864.0,0.07497]
[1674245173351,1.43374169,21876.0,21865.0,0.02263594]
[1674245173591,0.47720169,21875.0,21866.0,0.18502243]
[1674245173838,0.2056,21868.0,21858.0,0.05863594]
[1674245174088,0.2056,21868.0,21858.0,0.02263594]
[1674245174089,0.2039,21864.0,21858.0,0.02263594]
[1674245174335,0.6,21865.0,21859.0,0.68788934]
[1674245174582,0.47720169,21864.0,21858.0,0.036]
[1674245174842,0.47720169,21863.0,21856.0,0.0748]
[1674245175101,0.47720169,21863.0,21855.0,0.0748]
[1674245175102,0.00018,21865.0,21858.0,0.03720884]
[1674245175345,0.00018,21865.0,21858.0,0.00120884]
[1674245175594,0.00018,21865.0,21858.0,0.18623127]
[1674245175844,0.47720169,21864.0,21858.0,0.18623127]
[1674245176111,0.47720169,21853.0,21837.0,0.0749]
[1674245176401,0.47720169,21853.0,21835.0,0.457973]
[1674245176402,0.2056,21849.0,21846.0,0.50484389]
[1674245176646,0.42985171,21859.0,21843.0,0.0749]
[1674245176920,0.42985171,21859.0,21858.0,0.026]
[1674245177144,1.46720871,21859.0,21848.0,0.18502243]
[1674245177406,1.46720871,21859.0,21840.0,0.44124994]
[1674245177407,0.2059,21849.0,21842.0,0.036]
[1674245177649,0.18502243,21848.0,21840.0,0.32627237]
[1674245177906,0.2059,21843.0,21840.0,0.36227237]
[1674245178143,0.457728,21847.0,21844.0,0.13144943]
[1674245178388,0.6,21863.0,21844.0,4.3e-07]
[1674245178389,0.2059,21845.0,21844.0,4.3e-07]
[1674245178627,0.93497169,21845.0,21840.0,0.036]
[1674245178877,0.93497169,21845.0,21839.0,0.28926812]
[1674245178878,0.66222412,21844.0,21839.0,0.28926812]
[1674245179122,0.66222412,21844.0,21829.0,0.07572]
[1674245179123,0.45568363,21843.0,21829.0,0.67572]
[1674245179374,0.47720169,21840.0,21834.0,0.036]
[1674245179629,2.03595212,21839.0,21835.0,0.20352995]
[1674245179877,0.85956083,21838.0,21829.0,0.18360716]
[1674245180120,1.39301669,21839.0,21829.0,0.036]
[1674245180121,0.93517569,21836.0,21829.0,0.036]
[1674245180384,0.47720169,21833.0,21819.0,2.07572]
[1674245180637,0.47720169,21833.0,21818.0,0.07572]
[1674245180638,0.458084,21831.0,21826.0,0.036]
[1674245180881,0.18502243,21830.0,21826.0,0.036]
[1674245181126,0.64313243,21829.0,21823.0,0.07017]
[1674245181375,0.64314143,21829.0,21824.0,0.319514]
[1674245181617,0.458084,21831.0,21825.0,1.59177885]
[1674245181867,0.458001,21834.0,21833.0,0.551501]
[1674245182132,0.457879,21840.0,21833.0,0.877532]
[1674245182372,0.45781,21844.0,21835.0,0.47720169]
[1674245182626,0.457717,21848.0,21837.0,0.47720169]
[1674245182893,0.457773,21850.0,21841.0,0.47720169]
[1674245182894,0.457772,21845.0,21841.0,0.47720169]
[1674245183142,0.457772,21845.0,21838.0,0.81219516]
[1674245183143,0.0001,21850.0,21844.0,0.47720169]
[1674245183384,0.0001,21850.0,21845.0,0.79074116]
[1674245183624,0.457479,21859.0,21850.0,5.742e-05]
[1674245183871,0.457224,21872.0,21853.0,0.67557]
[1674245184112,0.457224,21872.0,21857.0,0.18360716]
[1674245184113,0.52039959,21861.0,21857.0,0.18360716]
[1674245184356,0.07543,21861.0,21857.0,0.18360716]
[1674245184597,0.457368,21865.0,21851.0,0.03393]
[1674245184856,0.457368,21865.0,21857.0,0.036]
[1674245184857,0.18502243,21860.0,21857.0,0.036]
[1674245185128,0.2059,21858.0,21851.0,0.18360716]
[1674245185372,0.2059,21854.0,21850.0,0.03605742]
[1674245185622,0.84812543,21853.0,21850.0,0.02605742]
[1674245185858,0.18502243,21852.0,21848.0,0.00019]
[1674245186102,0.18502243,21851.0,21850.0,0.036]
[1674245186344,0.457542,21856.0,21840.0,0.07437]
[1674245186597,0.18502243,21855.0,21843.0,0.47720169]
[1674245186848,0.18502243,21854.0,21844.0,0.98950585]
[1674245187096,0.18502243,21853.0,21845.0,0.97237385]
[1674245187349,0.18502243,21853.0,21840.0,0.532231]
[1674245187350,0.457636,21852.0,21846.0,0.311436]
[1674245187602,0.66222412,21851.0,21835.0,0.00188378]
[1674245187845,0.25936243,21850.0,21836.0,0.66080885]
[1674245188088,0.25936243,21850.0,21837.0,0.66080885]
[1674245188089,0.7,21844.0,21837.0,0.66080885]
[1674245188334,0.18502243,21843.0,21835.0,0.00188378]
[1674245188573,0.7,21844.0,21835.0,0.00188378]
[1674245188574,0.18502243,21842.0,21835.0,0.00188378]
[1674245189055,0.18502243,21841.0,21833.0,0.54838478]
[1674245189300,0.18502243,21840.0,21833.0,0.54838478]
[1674245189595,0.77446,21844.0,21833.0,0.54838478]
[1674245189596,0.18502243,21839.0,21833.0,1.20919363]
[1674245189831,0.18502243,21839.0,21833.0,0.54838478]
[1674245189832,0.18502243,21838.0,21833.0,0.54838478]
[1674245190089,0.00019,21839.0,21833.0,0.54838478]
[1674245190090,0.18502243,21837.0,21833.0,0.54838478]
[1674245190344,0.3600963,21847.0,21833.0,0.05602151]
[1674245190586,0.15,21838.0,21833.0,0.05602151]
[1674245190838,0.15,21838.0,21833.0,0.02002151]
[1674245191816,0.15,21838.0,21834.0,0.301205]
[1674245192131,0.07487,21841.0,21834.0,0.301205]
[1674245192309,0.07487,21841.0,21834.0,0.036]
[1674245192564,0.45784,21842.0,21835.0,0.18502243]
[1674245192796,0.45784,21842.0,21834.0,0.072]
[1674245192797,0.457804,21844.0,21836.0,0.18482243]
[1674245193047,0.6,21849.0,21837.0,0.18502243]
[1674245193048,0.532869,21847.0,21837.0,0.18502243]
[1674245193312,0.532809,21850.0,21838.0,0.66222412]
[1674245193313,0.2056,21848.0,21838.0,0.66222412]
[1674245193572,0.07513,21849.0,21839.0,0.98440112]
[1674245193830,0.76944934,21853.0,21841.0,0.25245648]
[1674245194083,0.54379493,21854.0,21850.0,0.15]
[1674245194322,0.07523,21856.0,21851.0,0.18502243]
[1674245194596,0.457485,21859.0,21843.0,0.07523]
[1674245194597,0.457575,21855.0,21852.0,0.18502243]
[1674245194828,0.07523,21851.0,21847.0,0.036]
[1674245195078,0.7535,21854.0,21850.0,0.47720169]
[1674245195325,0.02317549,21862.0,21851.0,1.71333943]
[1674245195568,0.66653273,21857.0,21852.0,0.51070243]
[1674245195802,0.69934682,21858.0,21853.0,0.648766]
[1674245196073,0.58519424,21856.0,21851.0,0.336]
[1674245196311,0.58519424,21856.0,21851.0,0.22102243]
[1674245196558,0.58519424,21856.0,21847.0,0.457724]
[1674245196559,0.1556,21855.0,21847.0,0.457724]
[1674245196814,0.02317549,21862.0,21851.0,0.036]
[1674245197064,0.63601157,21860.0,21854.0,0.91515]
[1674245197331,0.02317549,21862.0,21854.0,0.91515]
[1674245197332,0.02317549,21862.0,21855.0,0.99212512]
[1674245197573,0.02317549,21862.0,21858.0,0.47720169]
[1674245197821,0.15,21871.0,21865.0,0.47720169]
[1674245198062,0.075,21884.0,21868.0,1.07720169]
[1674245198322,0.075,21881.0,21870.0,1.371735]
[1674245198570,0.66113977,21885.0,21871.0,0.59998]
[1674245198807,0.075,21884.0,21872.0,1.22946]
[1674245199045,0.07538,21889.0,21873.0,0.605351]
[1674245199296,0.145,21886.0,21883.0,0.47720169]
[1674245199545,0.1393,21886.0,21884.0,2.18832537]
[1674245199823,0.1393,21886.0,21885.0,0.97170812]
[1674245200063,0.02578125,21890.0,21889.0,0.47720169]
[1674245200312,0.69498469,21900.0,21889.0,0.47720169]
[1674245200313,0.61870963,21900.0,21889.0,2.63995112]
[1674245200569,0.53907265,21899.0,21890.0,0.49935343]
[1674245200815,0.07553,21900.0,21891.0,0.16500243]
[1674245201059,0.64166643,21899.0,21892.0,0.05685777]
[1674245201327,0.0108275,21891.0,21890.0,0.036]
[1674245201554,0.0613875,21897.0,21892.0,0.036]
[1674245201793,0.18502243,21899.0,21892.0,0.036]
[1674245202054,0.0001,21900.0,21890.0,0.492827]
[1674245202301,0.18502243,21899.0,21892.0,0.492776]
[1674245202543,0.0001,21900.0,21893.0,0.79957669]
[1674245202805,0.0001,21900.0,21895.0,1.370171]
[1674245203057,0.64166402,21900.0,21896.0,0.80275569]
[1674245203318,0.64166402,21900.0,21897.0,1.70202269]
[1674245203319,0.0001,21900.0,21897.0,1.70202269]
[1674245203559,0.0001,21900.0,21898.0,1.11508169]
[1674245203560,0.54911291,21900.0,21898.0,1.11508169]
[1674245203806,0.0001,21900.0,21899.0,0.772662]
[1674245204046,0.0001,21900.0,21899.0,0.781162]
[1674245204292,0.0001,21900.0,21899.0,0.316021]
[1674245204293,0.73193037,21900.0,21899.0,0.316021]
[1674245204533,0.73193037,21900.0,21895.0,0.456713]
[1674245204834,0.13922,21900.0,21899.0,0.036]
[1674245205087,0.54321209,21904.0,21899.0,0.036]
[1674245205337,0.54321209,21904.0,21899.0,0.456641]
[1674245205585,0.17468,21905.0,21899.0,0.036]
[1674245205586,0.18502243,21903.0,21899.0,0.036]
[1674245205825,0.18502243,21903.0,21899.0,0.0478996]
[1674245205826,0.66222412,21902.0,21899.0,0.0478996]
[1674245206071,0.4566,21901.0,21899.0,0.036]
[1674245206318,0.66222412,21900.0,21883.0,0.456974]
[1674245206569,0.456727,21895.0,21882.0,0.456993]
[1674245206814,0.456727,21895.0,21877.0,0.457084]
[1674245206815,0.66222412,21894.0,21877.0,0.457084]
[1674245207057,0.456825,21891.0,21889.0,0.036]
[1674245207299,0.456829,21890.0,21889.0,0.036]
[1674245207552,1.11905312,21890.0,21877.0,0.457283]
[1674245207791,0.65722412,21889.0,21877.0,0.457288]
[1674245208038,0.91385,21886.0,21882.0,0.036]
[1674245208275,0.086,21885.0,21882.0,0.036]
[1674245208541,0.64197643,21884.0,21877.0,0.00019]
[1674245208785,0.0983,21881.0,21858.0,0.15]
[1674245209035,0.0855,21869.0,21849.0,0.02755839]
[1674245209278,0.457393,21863.0,21849.0,0.02755839]
[1674245209528,0.457393,21863.0,21848.0,0.07498]
[1674245209529,0.66222412,21862.0,21850.0,0.457664]
[1674245209793,0.18502243,21861.0,21851.0,0.457631]
[1674245210055,0.18502243,21861.0,21847.0,0.02494713]
[1674245210056,0.64247943,21860.0,21847.0,0.02494713]
[1674245210303,0.65215412,21859.0,21842.0,0.07498]
[1674245210544,0.65215412,21859.0,21844.0,0.02494713]
[1674245210545,0.64253343,21858.0,21844.0,0.02494713]
[1674245210810,0.18502243,21857.0,21845.0,0.47720169]
[1674245211073,0.18502243,21856.0,21846.0,0.328555]
[1674245211341,0.65092412,21855.0,21847.0,0.02737001]
[1674245211588,0.65092412,21855.0,21843.0,0.02737001]
[1674245211834,0.18502243,21854.0,21844.0,0.10348001]
[1674245212173,0.18502243,21853.0,21846.0,0.457745]
[1674245212340,0.57452288,21856.0,21854.0,0.11040272]
[1674245212577,0.07526,21860.0,21855.0,0.3146]
[1674245212578,0.0765,21859.0,21855.0,0.3146]
[1674245212813,0.0765,21859.0,21856.0,0.52051243]
[1674245213059,0.47720169,21858.0,21854.0,0.11040272]
[1674245213306,0.47140169,21857.0,21854.0,0.11040272]
[1674245213557,0.47720169,21856.0,21854.0,0.11040272]
[1674245213801,0.533985,21859.0,21854.0,0.036]
[1674245213802,0.47720169,21855.0,21854.0,0.036]
[1674245214061,0.533985,21859.0,21847.0,0.457714]
[1674245214062,0.65220371,21857.0,21847.0,0.457714]
[1674245214315,0.15623718,21856.0,21854.0,0.036]
[1674245214549,0.66932196,21859.0,21851.0,0.535481]
[1674245214815,0.457336,21866.0,21852.0,0.50190943]
[1674245215064,7.5,21888.0,21852.0,0.50190943]
[1674245215065,0.60686825,21867.0,21854.0,0.036]
[1674245215319,0.60686825,21867.0,21858.0,0.914962]
[1674245215563,0.10612358,21870.0,21859.0,0.632644]
[1674245215815,0.53093577,21867.0,21860.0,0.777237]
[1674245216060,0.15623718,21866.0,21861.0,0.339112]
[1674245216311,0.15623718,21866.0,21860.0,0.457445]
[1674245216560,0.15623718,21866.0,21859.0,0.33572]
[1674245216561,0.15623718,21865.0,21861.0,0.312805]
[1674245216808,0.15623718,21865.0,21855.0,0.457274]
[1674245217066,0.63343887,21864.0,21859.0,0.03572]
[1674245217358,0.47720169,21862.0,21856.0,0.18502243]
[1674245217592,0.47720169,21858.0,21854.0,0.036]
[1674245217836,0.47720169,21858.0,21844.0,0.536257]
[1674245218108,0.47720169,21858.0,21844.0,0.18502243]
[1674245218109,0.47720169,21854.0,21844.0,0.18502243]
[1674245218350,0.63389886,21853.0,21849.0,0.03577]
[1674245218593,0.63389886,21852.0,21841.0,0.457686]
[1674245218849,0.1,21850.0,21841.0,0.64247843]
[1674245219126,0.1,21850.0,21849.0,0.03577]
[1674245219388,0.1,21850.0,21841.0,0.64247843]
[1674245219389,0.0943,21850.0,21844.0,0.09977]
[1674245219672,0.0943,21850.0,21845.0,0.770864]
[1674245219884,0.6778185,21849.0,21846.0,0.338118]
[1674245220107,0.83451567,21849.0,21844.0,0.09977]
[1674245220346,0.83451567,21849.0,21846.0,0.036]
[1674245220347,0.15669717,21848.0,21846.0,0.036]
[1674245220593,0.18502243,21847.0,21841.0,0.457836]
[1674245220830,0.18502243,21846.0,21838.0,0.457902]
[1674245221095,0.18502243,21845.0,21844.0,0.036]
[1674245221356,0.62167157,21850.0,21845.0,0.2569143]
[1674245221590,0.0943,21850.0,21846.0,0.92375819]
[1674245221846,0.0943,21850.0,21847.0,0.3610992]
[1674245222085,0.0943,21850.0,21848.0,1.078122]
[1674245222334,0.54699561,21854.0,21851.0,0.04893811]
[1674245222590,0.59876331,21855.0,21852.0,0.3607862]
[1674245222832,0.15,21858.0,21853.0,0.3573932]
[1674245223079,0.15,21858.0,21854.0,0.3577352]
[1674245223316,0.58027433,21856.0,21855.0,0.3758132]
[1674245223561,0.75724058,21859.0,21853.0,0.25278321]
[1674245223802,0.15,21860.0,21853.0,0.22275641]
[1674245224045,0.15,21860.0,21854.0,0.631927]
[1674245224292,0.15,21856.0,21855.0,1.02908338]
[1674245224547,0.15,21856.0,21854.0,0.493562]
[1674245224803,0.2754115,21856.0,21851.0,0.04893811]
[1674245225043,0.18360719,21855.0,21851.0,0.04893811]
[1674245225524,0.18360719,21855.0,21852.0,0.329618]
[1674245225763,0.08208,21862.0,21853.0,0.322392]
[1674245226014,0.59552601,21859.0,21854.0,0.95959342]
[1674245226275,0.02411454,21864.0,21855.0,0.320305]
[1674245226529,0.02411454,21864.0,21857.0,1.372512]
[1674245226777,0.02411454,21864.0,21860.0,0.47720169]
[1674245227022,0.02411454,21864.0,21861.0,2.35413011]
[1674245227514,0.15,21875.0,21863.0,0.47720169]
[1674245227766,0.15,21875.0,21869.0,0.47720169]
[1674245228019,0.15,21875.0,21866.0,0.08239]
[1674245228020,0.18777589,21868.0,21867.0,0.47720169]
[1674245228276,0.07207,21871.0,21868.0,0.04086932]
[1674245228552,0.07207,21871.0,21869.0,0.320833]
[1674245228794,0.54118785,21878.0,21870.0,0.785197]
[1674245229054,0.62477772,21879.0,21871.0,0.307399]
[1674245229317,0.2,21882.0,21873.0,0.914352]
[1674245229568,0.2,21882.0,21874.0,0.310752]
[1674245229856,0.2,21882.0,21876.0,0.914231]
[1674245230071,0.2,21882.0,21875.0,0.323805]
[1674245230072,0.6779103,21878.0,21877.0,0.317297]
[1674245230349,0.6779103,21878.0,21873.0,0.950368]
[1674245230350,0.5123625,21878.0,21873.0,0.457184]
[1674245230600,0.96290512,21877.0,21876.0,0.036]
[1674245230856,0.96290512,21877.0,21868.0,0.03236932]
[1674245231109,0.47720169,21872.0,21861.0,0.914858]
[1674245231357,0.47720169,21869.0,21861.0,0.457416]
[1674245231623,0.50118343,21871.0,21858.0,0.457487]
[1674245231624,0.97260812,21868.0,21858.0,0.457487]
[1674245231883,0.97877112,21867.0,21860.0,0.457451]
[1674245232139,0.47720169,21865.0,21856.0,0.457525]
[1674245232464,0.97206512,21864.0,21856.0,0.457525]
[1674245232722,0.50252443,21863.0,21856.0,0.457525]
[1674245232968,0.18502243,21862.0,21857.0,0.316566]
[1674245233227,0.85437974,21861.0,21858.0,0.315411]
[1674245233485,0.66222412,21860.0,21852.0,0.457607]
[1674245233751,0.66222412,21859.0,21852.0,0.457607]
[1674245234007,0.66222412,21858.0,21856.0,0.15]
[1674245234271,0.78097369,21857.0,21852.0,0.14237868]
[1674245234527,0.47720169,21855.0,21847.0,0.57886055]
[1674245234799,0.97671212,21854.0,21845.0,0.00019]
[1674245235107,0.96446112,21853.0,21850.0,0.13151372]
[1674245235334,0.18502243,21858.0,21845.0,0.08282]
[1674245235593,0.66222412,21857.0,21848.0,0.457697]
[1674245235855,0.47720169,21853.0,21848.0,0.11265212]
[1674245236118,0.18502243,21856.0,21846.0,0.11627227]
[1674245236119,0.97030112,21852.0,21846.0,0.11627227]
[1674245236444,0.98993912,21851.0,21844.0,0.457785]
[1674245236676,0.51296343,21850.0,21845.0,0.036]
[1674245236925,0.18502243,21850.0,21849.0,0.1278381]
[1674245237190,0.47720169,21850.0,21849.0,0.45111372]
[1674245237740,0.08402,21853.0,21842.0,0.45782]
[1674245237741,0.0005,21853.0,21842.0,0.45782]
[1674245237971,0.18502243,21852.0,21849.0,1.06711538]
[1674245238236,0.02,21861.0,21850.0,0.335371]
[1674245238503,0.02,21861.0,21856.0,0.86207436]
[1674245238785,0.02,21861.0,21857.0,1.700572]
[1674245239047,0.02,21861.0,21858.0,0.295344]
[1674245239325,0.02,21861.0,21859.0,1.23418]
[1674245239737,0.51571208,21869.0,21860.0,0.604105]
[1674245239740,0.08352,21872.0,21860.0,0.604105]
[1674245239997,1.01085772,21871.0,21863.0,0.914765]
[1674245240250,0.02457518,21873.0,21864.0,0.604035]
[1674245240251,0.02430518,21873.0,21864.0,0.604035]
[1674245240508,0.02403518,21873.0,21866.0,0.914632]
[1674245240771,0.02349518,21873.0,21867.0,0.610514]
[1674245241023,0.14973,21872.0,21868.0,1.660089]
[1674245241293,0.14946,21872.0,21869.0,0.60991]
[1674245241553,0.02349518,21873.0,21870.0,1.203314]
[1674245241821,0.15,21880.0,21871.0,0.60988]
[1674245242078,0.15,21880.0,21873.0,1.37151]
[1674245242343,0.1499,21880.0,21874.0,0.309828]
[1674245242595,0.1499,21880.0,21875.0,1.960126]
[1674245243117,0.1499,21880.0,21876.0,0.309799]
[1674245243381,0.1499,21880.0,21875.0,1.671378]
[1674245243382,0.05,21882.0,21877.0,1.045816]
[1674245243639,0.05,21882.0,21878.0,0.309769]
[1674245243640,0.18502243,21881.0,21878.0,0.309769]
[1674245243903,0.05,21882.0,21878.0,0.309769]
[1674245243904,0.05,21882.0,21879.0,1.202799]
[1674245244189,0.71222412,21882.0,21880.0,0.167392]
[1674245244472,0.05,21882.0,21880.0,0.457022]
[1674245244729,0.05,21882.0,21881.0,0.316703]
[1674245244998,0.05,21882.0,21879.0,0.036]
[1674245245262,0.05,21882.0,21879.0,0.06886]
[1674245245541,0.05,21882.0,21876.0,0.13799018]
[1674245245542,1.26417699,21881.0,21876.0,0.13799018]
[1674245245805,0.98531112,21880.0,21879.0,0.072]
[1674245246076,0.98531112,21880.0,21874.0,0.457144]
[1674245246077,0.66222412,21880.0,21874.0,0.457144]
[1674245246334,0.05,21882.0,21870.0,1.110372]
[1674245246335,0.98882412,21879.0,21870.0,1.110372]
[1674245246597,0.47720169,21876.0,21867.0,0.457303]
[1674245246861,0.47720169,21876.0,21865.0,0.457338]
[1674245246862,0.99220612,21875.0,21873.0,0.036]
[1674245247150,0.79622669,21874.0,21866.0,0.1599]
[1674245247406,0.320709,21873.0,21863.0,0.457385]
[1674245247659,0.47720169,21874.0,21866.0,0.036]
[1674245247660,0.98175612,21872.0,21866.0,0.036]
[1674245247923,0.47720169,21870.0,21866.0,0.0001]
[1674245248220,0.2065,21867.0,21857.0,0.32842232]
[1674245248502,0.98050312,21866.0,21861.0,0.036]
[1674245248779,0.2072,21863.0,21858.0,0.12677742]
[1674245249033,0.2072,21863.0,21856.0,1.31961036]
[1674245249034,0.18002243,21862.0,21856.0,1.31961036]
[1674245249290,0.18002243,21862.0,21858.0,0.914991]
[1674245249291,0.18502243,21862.0,21858.0,0.914991]
[1674245249589,0.98809787,21869.0,21864.0,0.22032988]
[1674245249866,0.54556016,21867.0,21865.0,0.31447243]
[1674245250117,0.60505504,21868.0,21866.0,0.18502243]
[1674245250378,0.47491671,21867.0,21864.0,0.22032988]
[1674245250643,0.47720169,21865.0,21864.0,0.03602988]
[1674245251107,0.80476469,21865.0,21856.0,0.86207436]
[1674245251109,0.80476469,21865.0,21864.0,0.036]
[1674245251367,0.80476469,21865.0,21856.0,0.86207436]
[1674245251368,0.93456869,21865.0,21856.0,0.86207436]
[1674245251626,0.47720169,21859.0,21856.0,0.86207436]
[1674245251905,0.78162669,21858.0,21853.0,0.81223546]
[1674245252158,0.78660769,21857.0,21853.0,0.81223546]
[1674245252450,0.79138769,21856.0,21853.0,0.81223546]
[1674245252737,0.47720169,21848.0,21843.0,0.00019]
[1674245252996,0.79351469,21847.0,21843.0,0.00019]
[1674245253270,0.80649769,21846.0,21843.0,0.00019]
[1674245253551,0.457727,21848.0,21843.0,0.00019]
[1674245253552,0.77792869,21845.0,21843.0,0.00019]
[1674245253804,0.47720169,21844.0,21843.0,0.00019]
[1674245254059,0.79132969,21844.0,21835.0,0.45997111]
[1674245254320,0.47720169,21839.0,21830.0,0.458081]
[1674245254575,0.79652169,21838.0,21830.0,0.45808]
[1674245254860,0.47720169,21837.0,21830.0,5.16234427]
[1674245255131,0.47720169,21836.0,21831.0,0.333516]
[1674245255399,0.47720169,21835.0,21830.0,5.16234227]
[1674245255715,0.47720169,21834.0,21831.0,0.311825]
[1674245255971,0.47720169,21833.0,21832.0,0.140889]
[1674245256349,0.47720169,21833.0,21826.0,0.00120884]
[1674245256350,0.71480251,21833.0,21826.0,0.00120884]
[1674245256594,0.47720169,21827.0,21826.0,0.00120884]
[1674245256884,0.68440169,21827.0,21816.0,0.458365]
[1674245257132,0.665365,21827.0,21826.0,0.036]
[1674245257382,0.962209,21827.0,21824.0,4.70425927]
[1674245257638,0.665365,21827.0,21815.0,0.458388]
[1674245257890,0.665365,21827.0,21815.0,4.8892817]
[1674245257891,0.47720169,21820.0,21815.0,4.8892817]
[1674245258156,0.47720169,21819.0,21815.0,4.70425927]
[1674245258403,0.546263,21825.0,21815.0,4.70425927]
[1674245258404,0.00019,21828.0,21819.0,0.41421161]
[1674245258653,0.47720169,21824.0,21820.0,0.97352043]
[1674245258993,0.47720169,21823.0,21821.0,0.122764]
[1674245259153,0.47720169,21822.0,21820.0,4.70425927]
[1674245259397,0.47720169,21821.0,21820.0,4.70425927]
[1674245259910,0.54648,21827.0,21820.0,4.70425927]
[1674245259911,0.545917,21834.0,21820.0,5.3475767]
[1674245260145,0.47720169,21830.0,21823.0,0.39486092]
[1674245260409,0.41632332,21828.0,21824.0,0.32186043]
[1674245260847,0.08826,21833.0,21824.0,0.32186043]
[1674245260848,0.2172,21836.0,21825.0,0.49954643]
[1674245261116,0.47720169,21834.0,21828.0,0.916254]
[1674245261374,0.01,21836.0,21829.0,0.79947843]
[1674245261632,0.01,21836.0,21831.0,1.374187]
[1674245261883,0.00019,21833.0,21832.0,0.80793143]
[1674245262141,0.01,21836.0,21832.0,1.72401743]
[1674245262418,0.01,21836.0,21833.0,0.32330443]
[1674245262715,0.15,21843.0,21834.0,1.238881]
[1674245262951,0.15,21838.0,21835.0,0.32328943]
[1674245263215,0.47720169,21837.0,21828.0,0.458127]
[1674245263470,0.314477,21836.0,21834.0,0.036]
[1674245263727,0.327116,21835.0,21834.0,0.072]
[1674245264009,0.47720169,21829.0,21823.0,0.39486092]
[1674245264286,0.78457969,21828.0,21823.0,4.89769991]
[1674245264562,0.47720169,21829.0,21823.0,5.35591991]
[1674245264821,0.41111713,21831.0,21824.0,0.310123]
[1674245265071,0.41111713,21831.0,21823.0,6.07117434]
[1674245265072,0.14088,21832.0,21826.0,1.37448]
[1674245265343,0.14088,21832.0,21827.0,0.307602]
[1674245265344,0.53864713,21832.0,21827.0,0.307602]
[1674245265604,0.53864713,21832.0,21828.0,0.145205]
[1674245265605,0.15,21830.0,21828.0,0.145205]
[1674245265885,0.47720169,21829.0,21828.0,4.70425927]
[1674245266146,0.15,21830.0,21828.0,5.03479427]
[1674245266410,0.15,21830.0,21829.0,0.122253]
[1674245266733,0.15,21830.0,21829.0,5.3473877]
[1674245267009,0.14088,21832.0,21829.0,5.49021127]
[1674245267265,0.14088,21832.0,21830.0,0.73747981]
[1674245267520,0.14088,21832.0,21831.0,1.234927]
[1674245267795,0.15,21833.0,21831.0,1.20229043]
[1674245268063,0.15,21839.0,21832.0,0.3]
[1674245268335,0.15,21839.0,21833.0,0.31889743]
[1674245268591,0.15,21839.0,21832.0,0.758043]
[1674245268592,0.15,21839.0,21834.0,1.10099043]
[1674245268903,0.47720169,21838.0,21835.0,0.133853]
[1674245269165,0.47720169,21837.0,21836.0,0.133846]
[1674245269479,0.9448181,21838.0,21836.0,0.133846]
[1674245269729,0.09036,21840.0,21834.0,4.77625927]
[1674245269730,0.47720169,21837.0,21834.0,4.77625927]
[1674245269986,0.09036,21840.0,21834.0,4.70425927]
[1674245269987,0.47720169,21836.0,21834.0,4.70425927]
[1674245270240,0.47720169,21835.0,21834.0,4.77625927]
[1674245270496,0.82860384,21835.0,21834.0,4.92625927]
[1674245270764,0.47720169,21835.0,21830.0,0.00477938]
[1674245271016,0.09093,21838.0,21834.0,0.072]
[1674245271280,0.41701035,21835.0,21834.0,0.25702243]
[1674245271527,0.41701035,21835.0,21830.0,4.70903865]
[1674245271528,2.1369,21833.0,21830.0,4.70903865]
[1674245271788,0.79578069,21832.0,21830.0,4.70903865]
[1674245272063,2.1369,21833.0,21830.0,4.70903865]
[1674245272307,2.1369,21833.0,21831.0,0.13389]
[1674245272563,0.47720169,21832.0,21830.0,4.78103865]
[1674245272826,2.58675188,21833.0,21830.0,4.70903865]
[1674245273090,2.1369,21833.0,21831.0,0.133889]
[1674245273348,1.4156808,21833.0,21832.0,0.133882]
[1674245273854,1.4156808,21833.0,21832.0,0.591925]
[1674245274112,1.4156808,21833.0,21832.0,0.169882]
[1674245274369,1.89288249,21833.0,21832.0,0.205882]
[1674245274803,1.89288249,21833.0,21832.0,0.072]
[1674245274978,2.2509659,21833.0,21832.0,0.072]
[1674245275236,1.4156808,21833.0,21832.0,0.072]
[1674245275501,1.4156808,21833.0,21832.0,0.205881]
[1674245276094,1.4156808,21833.0,21832.0,0.663924]
[1674245276095,1.4056808,21833.0,21832.0,0.663924]
[1674245276582,1.4056808,21833.0,21832.0,0.205881]
[1674245277080,1.4056808,21833.0,21832.0,0.963924]
[1674245277330,0.55766506,21833.0,21832.0,0.963924]
[1674245278554,0.55766506,21833.0,21832.0,0.205881]
[1674245278797,0.96764561,21833.0,21831.0,0.41554734]
[1674245279036,0.55766506,21833.0,21832.0,0.072]
[1674245279518,0.55766506,21833.0,21832.0,0.458043]
[1674245279759,0.55766506,21833.0,21831.0,4.77625927]
[1674245279760,0.4330001,21832.0,21831.0,4.77625927]
[1674245280005,0.91020179,21832.0,21831.0,4.77625927]
[1674245280261,0.47720169,21832.0,21831.0,4.70425927]
[1674245280504,0.47720169,21832.0,21831.0,4.77625927]
[1674245280748,0.90773084,21832.0,21831.0,4.77625927]
[1674245281237,0.55766506,21833.0,21831.0,4.77625927]
[1674245281476,0.55711409,21833.0,21831.0,4.9612817]
[1674245281724,0.55711409,21833.0,21832.0,0.916086]
[1674245281962,0.55711409,21833.0,21832.0,0.458043]
[1674245282202,1.03431578,21833.0,21832.0,0.15]
[1674245282694,0.55711409,21833.0,21832.0,0.14977836]
[1674245282696,0.55711409,21833.0,21832.0,0.60782136]
[1674245282957,0.55711409,21833.0,21832.0,0.458043]
[1674245283490,0.55711409,21833.0,21832.0,0.830043]
[1674245283762,0.55711409,21833.0,21832.0,1.288086]
[1674245284276,0.45711409,21833.0,21832.0,1.288086]
[1674245285054,0.02310473,21838.0,21832.0,1.288086]